[Event "11th Dolomiti Open 2020"]
[Site "Forni di Sopra"]
[Date "2020.09.28"]
[Round "3.10"]
[White "Ranfagni, Stefano"]
[Black "Sirletti, Sonia"]
[Result "1/2-1/2"]
[ECO "E18"]
[WhiteElo "1844"]
[BlackElo "1804"]
[Annotator "NA"]
[PlyCount "41"]
[EventDate "2020.09.26"]
[EventType "swiss"]
[EventCountry "ITA"]
[SourceTitle "playchess.com"]
[Source "ChessBase"]
[SourceQuality "1"]
[TimeControl "40/5400+30:1800+30"]

1. c4 {[%emt 0:00:00]} e6 {[%emt 0:00:37]} 2. g3 {[%emt 0:00:03]} d5 {[%emt 0:00:23]} 3. Bg2 {[%emt 0:00:13]} Nf6 {[%emt 0:00:21]} 4. d4 {[%emt 0:00:29]} Be7 {[%emt 0:00:19]} 5. Nf3 {[%emt 0:00:57]} O-O {[%emt 0:00:09]} 6. O-O {[%emt 0:01:20]} b6 {[%emt 0:00:49]} 7. cxd5 {[%emt 0:01:02]} exd5 {[%emt 0:00:13]} 8. Nc3 {[%emt 0:01:56]} Bb7 {[%emt 0:00:50]} 9. Bf4 {[%emt 0:03:44]} Na6 {[%emt 0:05:47]} 10. Rc1 {[%emt 0:02:41]} c6 {[%emt 0:10:57]} 11. a3 {[%emt 0:04:19]} Nc7 {[%emt 0:04:41]} 12. Bxc7 {[%emt 0:04:08]} Qxc7 {[%emt 0:00:07]} 13. Ne5 {[%emt 0:01:38]} Qd6 {[%emt 0:02:43]} 14. Re1 {[%emt 0:04:36]} Rfe8 {[%emt 0:08:45]} 15. e4 {[%emt 0:04:17]} dxe4 {[%emt 0:03:46]} 16. Nxe4 {[%emt 0:00:15]} Nxe4 {[%emt 0:00:29]} 17. Bxe4 {[%emt 0:00:28]} Rac8 {[%emt 0:12:56]} 18. Qf3 {[%emt 0:10:42]} Qf6 {[%emt 0:06:50]} 19. Red1 {[%emt 0:10:42]} Qf5 {[%emt 0:38:48]} 20. Qf4 Qxf4 {[%emt 0:00:00]} 21. Bf3 {[%emt 0:00:54]} 1/2-1/2

[Event "11th Dolomiti Open 2020"]
[Site "Forni di Sopra"]
[Date "2020.09.29"]
[Round "4.1"]
[White "Blohberger, Felix"]
[Black "Moroni, Luca Jr"]
[Result "1/2-1/2"]
[ECO "C78"]
[WhiteElo "2467"]
[BlackElo "2530"]
[Annotator "ChessBase"]
[PlyCount "34"]
[EventDate "2020.09.26"]
[EventType "swiss"]
[EventCountry "ITA"]
[SourceTitle "playchess.com"]
[Source "ChessBase"]
[SourceQuality "1"]
[TimeControl "40/5400+30:1800+30"]

1. e4 {[%emt 0:00:00]} e5 {[%emt 0:00:00]} 2. Nf3 {[%emt 0:00:00]} Nc6 {[%emt 0:00:00]} 3. Bb5 {[%emt 0:00:00]} a6 {[%emt 0:00:00]} 4. Ba4 {[%emt 0:00:00]} Nf6 {[%emt 0:00:00]} 5. O-O {[%emt 0:00:09]} b5 {[%emt 0:00:00]} 6. Bb3 {[%emt 0:00:05]} Bc5 {[%emt 0:00:01]} 7. a4 {[%emt 0:00:22]} Rb8 {[%emt 0:00:05]} 8. c3 {[%emt 0:00:19]} d6 {[%emt 0:00:05]} 9. d4 {[%emt 0:00:07]} Bb6 {[%emt 0:00:03]} 10. a5 {[%emt 0:00:14]} Ba7 {[%emt 0:00:07]} 11. h3 {[%emt 0:00:14]} O-O {[%emt 0:00:10]} 12. Be3 {[%emt 0:00:18]} Ra8 {[%emt 0:00:09]} 13. Nbd2 {[%emt 0:00:13]} Re8 {[%emt 0:00:09]} 14. Ng5 {[%emt 0:00:22]} Rf8 {[%emt 0:00:08]} 15. Ngf3 {[%emt 0:00:14]} Re8 {[%emt 0:00:14]} 16. Ng5 {[%emt 0:00:08]} Rf8 {[%emt 0:00:05]} 17. Ngf3 {[%emt 0:00:06]} Re8 {[%emt 0:00:07]} 1/2-1/2

[Event "11th Dolomiti Open 2020"]
[Site "Forni di Sopra"]
[Date "2020.09.29"]
[Round "4.2"]
[White "Gumularz, Szymon"]
[Black "Valsecchi, Alessio"]
[Result "0-1"]
[ECO "A36"]
[WhiteElo "2518"]
[BlackElo "2491"]
[Annotator "ChessBase"]
[PlyCount "57"]
[EventDate "2020.09.26"]
[EventType "swiss"]
[EventCountry "ITA"]
[SourceTitle "playchess.com"]
[Source "ChessBase"]
[SourceQuality "1"]
[TimeControl "40/5400+30:1800+30"]

1. c4 {[%emt 0:00:00]} Nf6 {[%emt 0:00:23]} 2. Nc3 {[%emt 0:00:00]} g6 {[%emt 0:00:08]} 3. e4 {[%emt 0:03:15]} d6 {[%emt 0:00:08]} 4. g3 {[%emt 0:05:25]} c5 {[%emt 0:00:41]} 5. Bg2 {[%emt 0:00:12]} Nc6 {[%emt 0:00:14]} 6. Nge2 {[%emt 0:02:02]} Bg7 {[%emt 0:00:08]} 7. O-O {[%emt 0:00:08]} O-O {[%emt 0:00:14]} 8. d3 {[%emt 0:00:22]} Ne8 {[%emt 0:00:20]} 9. Be3 {[%emt 0:01:47]} Nd4 {[%emt 0:05:21]} 10. Rb1 {[%emt 0:09:27]} Nc7 {[%emt 0:00:32]} 11. b4 {[%emt 0:02:15]} b6 {[%emt 0:03:28]} 12. Qd2 {[%emt 0:02:10]} Bb7 {[%emt 0:09:00]} 13. Bh6 {[%emt 0:26:58]} Bxh6 {[%emt 0:01:10]} 14. Qxh6 {[%emt 0:00:05]} Nce6 {[%emt 0:00:48]} 15. h4 {[%emt 0:03:04]} Kh8 {[%emt 0:19:10]} 16. h5 {[%emt 0:14:22]} Rg8 {[%emt 0:01:15]} 17. f4 {[%emt 0:03:22]} f5 {[%emt 0:06:48]} 18. hxg6 {[%emt 0:11:18]} Rxg6 {[%emt 0:01:50]} 19. Qh4 {[%emt 0:03:08]} Qf8 {[%emt 0:00:32]} 20. Nxd4 {[%emt 0:03:43]} Nxd4 {[%emt 0:08:01]} 21. Kf2 {[%emt 0:00:34]} Qg7 {[%emt 0:00:54]} 22. Rh1 {[%emt 0:00:55]} Rg8 {[%emt 0:00:33]} 23. bxc5 {[%emt 0:00:59]} dxc5 {[%emt 0:00:21]} 24. Rh3 {[%emt 0:03:04]} fxe4 {[%emt 0:11:56]} 25. dxe4 {[%emt 0:01:58]} Bc8 {[%emt 0:00:15]} 26. f5 {[%emt 0:00:41]} Bxf5 {[%emt 0:01:07]} 27. exf5 {[%emt 0:01:11]} Nxf5 {[%emt 0:28:13]} 28. Qe4 {[%emt 0:00:51]} Nxg3 {[%emt 0:00:00]} 29. Qe3 {[%emt 0:00:00]} 0-1

[Event "11th Dolomiti Open 2020"]
[Site "Forni di Sopra"]
[Date "2020.09.29"]
[Round "4.3"]
[White "Heberla, Bartlomiej"]
[Black "Cumming, Rhys"]
[Result "1-0"]
[ECO "A16"]
[WhiteElo "2566"]
[BlackElo "2299"]
[Annotator "ChessBase"]
[PlyCount "101"]
[EventDate "2020.09.26"]
[EventType "swiss"]
[EventCountry "ITA"]
[SourceTitle "playchess.com"]
[Source "ChessBase"]
[SourceQuality "1"]
[TimeControl "40/5400+30:1800+30"]

1. c4 {[%emt 0:04:57]} Nf6 {[%emt 0:00:11]} 2. Nc3 {[%emt 0:00:03]} g6 {[%emt 0:00:32]} 3. e4 {[%emt 0:00:56]} e5 {[%emt 0:00:54]} 4. Nf3 {[%emt 0:01:28]} Bg7 {[%emt 0:00:48]} 5. Nxe5 {[%emt 0:01:07]} O-O {[%emt 0:00:20]} 6. Nf3 {[%emt 0:00:49]} Re8 {[%emt 0:01:02]} 7. d3 {[%emt 0:00:52]} d5 {[%emt 0:01:12]} 8. cxd5 {[%emt 0:00:06]} Nxd5 {[%emt 0:01:09]} 9. Bd2 {[%emt 0:01:40]} Bg4 {[%emt 0:12:54]} 10. a3 {[%emt 0:17:47]} Nc6 {[%emt 0:28:05]} 11. Be2 {[%emt 0:00:34]} Bxf3 {[%emt 0:08:46]} 12. Bxf3 {[%emt 0:00:43]} Nxc3 {[%emt 0:03:34]} 13. Bxc3 {[%emt 0:00:13]} Nd4 {[%emt 0:01:21]} 14. O-O {[%emt 0:00:24]} Qd6 {[%emt 0:03:34]} 15. g3 {[%emt 0:07:59]} Rad8 {[%emt 0:01:29]} 16. Bg2 {[%emt 0:00:09]} Ne6 {[%emt 0:01:59]} 17. Bxg7 {[%emt 0:04:08]} Kxg7 {[%emt 0:00:11]} 18. Qa4 {[%emt 0:02:37]} Nc5 {[%emt 0:03:05]} 19. Qc2 {[%emt 0:01:39]} Nxd3 {[%emt 0:03:09]} 20. Rfd1 {[%emt 0:03:46]} Qc5 {[%emt 0:04:51]} 21. Qe2 {[%emt 0:09:29]} Ne5 {[%emt 0:02:03]} 22. Rac1 {[%emt 0:00:14]} Qb6 {[%emt 0:00:33]} 23. Rd2 {[%emt 0:01:06]} c6 {[%emt 0:04:20]} 24. Rcd1 {[%emt 0:00:24]} Kg8 {[%emt 0:02:15]} 25. h3 {[%emt 0:02:24]} Rxd2 {[%emt 0:02:30]} 26. Qxd2 {[%emt 0:00:23]} Qb3 {[%emt 0:00:25]} 27. Qe2 {[%emt 0:04:38]} b5 {[%emt 0:02:10]} 28. Bf1 {[%emt 0:08:45]} Nc4 {[%emt 0:04:45]} 29. Rc1 {[%emt 0:00:34]} Re6 {[%emt 0:02:02]} 30. Rc2 {[%emt 0:03:49]} h5 {[%emt 0:00:02]} 31. Qd3 {[%emt 0:00:29]} Qxd3 {[%emt 0:02:02]} 32. Bxd3 {[%emt 0:00:02]} Ne5 {[%emt 0:00:13]} 33. Be2 {[%emt 0:00:08]} h4 {[%emt 0:02:20]} 34. gxh4 {[%emt 0:00:19]} Rd6 {[%emt 0:01:12]} 35. f4 {[%emt 0:01:20]} Nd7 {[%emt 0:00:13]} 36. Kf2 {[%emt 0:00:10]} Nb6 {[%emt 0:00:53]} 37. Ke3 {[%emt 0:09:52]} f5 {[%emt 0:00:01]} 38. e5 {[%emt 0:01:15]} Nd5+ {[%emt 0:00:52]} 39. Kf3 {[%emt 0:00:07]} Re6 {[%emt 0:00:41]} 40. Rd2 {[%emt 0:00:21]} a6 {[%emt 0:00:27]} 41. Bd1 {[%emt 0:30:22]} Re8 {[%emt 0:30:37]} 42. Bb3 {[%emt 0:01:06]} Rd8 {[%emt 0:00:25]} 43. Rc2 {[%emt 0:01:42]} Kg7 {[%emt 0:00:00]} 44. Rxc6 {[%emt 0:00:00]} Ne7 {[%emt 0:00:00]} 45. Rd6 {[%emt 0:00:00]} Rxd6 {[%emt 0:00:00]} 46. exd6 {[%emt 0:00:00]} Nc6 {[%emt 0:00:00]} 47. Bd5 {[%emt 0:00:00]} Nb8 {[%emt 0:00:00]} 48. Ke3 {[%emt 0:00:00]} Kf8 {[%emt 0:00:00]} 49. Kd4 {[%emt 0:00:00]} Nd7 {[%emt 0:00:00]} 50. Bb7 {[%emt 0:00:00]} a5 {[%emt 0:00:00]} 51. Bc6 {[%emt 0:00:00]} 1-0

[Event "11th Dolomiti Open 2020"]
[Site "Forni di Sopra"]
[Date "2020.09.29"]
[Round "4.4"]
[White "Fecker, Noah"]
[Black "Bellia, Fabrizio"]
[Result "0-1"]
[ECO "C88"]
[WhiteElo "2345"]
[BlackElo "2421"]
[Annotator "ChessBase"]
[PlyCount "92"]
[EventDate "2020.09.26"]
[EventType "swiss"]
[EventCountry "ITA"]
[SourceTitle "playchess.com"]
[Source "ChessBase"]
[SourceQuality "1"]
[TimeControl "40/5400+30:1800+30"]

1. e4 {[%emt 0:00:00]} e5 {[%emt 0:00:00]} 2. Nf3 {[%emt 0:00:00]} Nc6 {[%emt 0:00:00]} 3. Bb5 {[%emt 0:00:00]} a6 {[%emt 0:00:00]} 4. Ba4 {[%emt 0:00:00]} Nf6 {[%emt 0:00:00]} 5. O-O {[%emt 0:00:00]} Be7 {[%emt 0:00:00]} 6. Re1 {[%emt 0:00:00]} b5 {[%emt 0:00:00]} 7. Bb3 {[%emt 0:00:04]} d6 {[%emt 0:00:05]} 8. a4 {[%emt 0:00:16]} Rb8 {[%emt 0:01:44]} 9. axb5 {[%emt 0:03:55]} axb5 {[%emt 0:00:05]} 10. c3 {[%emt 0:02:41]} O-O {[%emt 0:01:03]} 11. h3 {[%emt 0:08:27]} Bd7 {[%emt 0:03:25]} 12. d4 {[%emt 0:03:59]} Ra8 {[%emt 0:01:55]} 13. Rxa8 {[%emt 0:04:16]} Qxa8 {[%emt 0:00:10]} 14. Nbd2 {[%emt 0:03:32]} h6 {[%emt 0:03:02]} 15. Nf1 {[%emt 0:03:18]} Re8 {[%emt 0:01:28]} 16. Ng3 {[%emt 0:01:26]} Bf8 {[%emt 0:01:52]} 17. Nh4 {[%emt 0:06:24]} Na5 {[%emt 0:05:44]} 18. Bc2 {[%emt 0:02:08]} g6 {[%emt 0:08:00]} 19. Qf3 {[%emt 0:08:05]} Nh7 {[%emt 0:07:45]} 20. Qd3 {[%emt 0:03:22]} Nc4 {[%emt 0:12:23]} 21. b3 {[%emt 0:06:47]} Na3 {[%emt 0:07:43]} 22. Bd1 {[%emt 0:05:32]} exd4 {[%emt 0:09:48]} 23. cxd4 {[%emt 0:00:43]} b4 {[%emt 0:00:17]} 24. Be3 {[%emt 0:06:10]} Qa5 {[%emt 0:09:42]} 25. Nf3 {[%emt 0:03:59]} Bg7 {[%emt 0:03:44]} 26. Qd2 {[%emt 0:01:59]} h5 {[%emt 0:00:37]} 27. Be2 {[%emt 0:02:17]} Bb5 {[%emt 0:03:06]} 28. Bf4 {[%emt 0:09:47]} Bxe2 {[%emt 0:00:36]} 29. Qxe2 {[%emt 0:00:16]} Nb5 {[%emt 0:04:17]} 30. Qc4 {[%emt 0:01:05]} Nc3 {[%emt 0:01:42]} 31. e5 {[%emt 0:01:49]} d5 {[%emt 0:04:36]} 32. Qc6 {[%emt 0:00:57]} Re6 {[%emt 0:00:49]} 33. Qd7 {[%emt 0:01:15]} c5 {[%emt 0:05:00]} 34. Qc8+ {[%emt 0:00:59]} Bf8 {[%emt 0:00:07]} 35. Bh6 {[%emt 0:02:59]} Qa6 {[%emt 0:00:10]} 36. Qd8 {[%emt 0:01:09]} Qb6 {[%emt 0:00:22]} 37. Qxb6 {[%emt 0:00:53]} Rxb6 {[%emt 0:00:04]} 38. Bxf8 {[%emt 0:01:41]} Nxf8 {[%emt 0:00:06]} 39. dxc5 {[%emt 0:00:17]} Rc6 {[%emt 0:00:47]} 40. Nd4 {[%emt 0:01:46]} Rxc5 {[%emt 0:00:10]} 41. Ra1 {[%emt 0:35:29]} Ne6 {[%emt 0:36:40]} 42. Ra8+ {[%emt 0:00:00]} Kg7 {[%emt 0:00:00]} 43. Nxe6+ {[%emt 0:00:00]} fxe6 {[%emt 0:00:00]} 44. Kf1 {[%emt 0:00:00]} d4 {[%emt 0:00:00]} 45. Rd8 {[%emt 0:00:00]} Ra5 {[%emt 0:00:00]} 46. Ke1 {[%emt 0:00:00]} h4 {[%emt 0:00:00]} 0-1

[Event "11th Dolomiti Open 2020"]
[Site "Forni di Sopra"]
[Date "2020.09.29"]
[Round "4.5"]
[White "Barp, Alberto"]
[Black "Bordignon, Angelo"]
[Result "1-0"]
[ECO "A58"]
[WhiteElo "2377"]
[BlackElo "2024"]
[Annotator "ChessBase"]
[PlyCount "75"]
[EventDate "2020.09.26"]
[EventType "swiss"]
[EventCountry "ITA"]
[SourceTitle "playchess.com"]
[Source "ChessBase"]
[SourceQuality "1"]
[TimeControl "40/5400+30:1800+30"]

1. d4 {[%emt 0:00:00]} Nf6 {[%emt 0:00:00]} 2. c4 {[%emt 0:00:00]} c5 {[%emt 0:00:00]} 3. d5 {[%emt 0:00:00]} b5 {[%emt 0:00:04]} 4. cxb5 {[%emt 0:00:00]} a6 {[%emt 0:00:21]} 5. bxa6 {[%emt 0:00:00]} g6 {[%emt 0:00:08]} 6. Nc3 {[%emt 0:00:00]} Bg7 {[%emt 0:00:13]} 7. e4 {[%emt 0:00:26]} O-O {[%emt 0:00:36]} 8. Nf3 {[%emt 0:00:20]} d6 {[%emt 0:00:25]} 9. Be2 {[%emt 0:04:10]} Bxa6 {[%emt 0:01:03]} 10. O-O {[%emt 0:00:11]} Qb6 {[%emt 0:02:45]} 11. Re1 {[%emt 0:02:46]} Nbd7 {[%emt 0:01:33]} 12. h3 {[%emt 0:09:27]} Rfb8 {[%emt 0:00:53]} 13. Bxa6 {[%emt 0:04:12]} Qxa6 {[%emt 0:03:16]} 14. e5 {[%emt 0:02:31]} dxe5 {[%emt 0:06:25]} 15. Nxe5 {[%emt 0:00:08]} Nxe5 {[%emt 0:01:47]} 16. Rxe5 {[%emt 0:00:04]} Qd6 {[%emt 0:02:47]} 17. Re2 {[%emt 0:02:52]} Rb7 {[%emt 0:09:36]} 18. a4 {[%emt 0:11:35]} Qa6 {[%emt 0:11:31]} 19. Ra3 {[%emt 0:04:05]} Qc4 {[%emt 0:13:19]} 20. Be3 {[%emt 0:05:15]} Ne8 {[%emt 0:09:15]} 21. Rc2 {[%emt 0:03:01]} Nd6 {[%emt 0:10:12]} 22. Nb5 {[%emt 0:05:10]} Qh4 {[%emt 0:00:14]} 23. Bxc5 {[%emt 0:08:18]} Nxb5 {[%emt 0:06:22]} 24. axb5 {[%emt 0:00:08]} Rxa3 {[%emt 0:04:50]} 25. Bxa3 {[%emt 0:00:56]} Bd4 {[%emt 0:01:12]} 26. Qe2 {[%emt 0:04:58]} Kg7 {[%emt 0:02:00]} 27. b3 {[%emt 0:02:28]} Rd7 {[%emt 0:02:22]} 28. b6 {[%emt 0:23:21]} Qf6 {[%emt 0:06:49]} 29. Rc6 {[%emt 0:03:28]} Qf5 {[%emt 0:01:19]} 30. Bc5 {[%emt 0:02:13]} Qxd5 {[%emt 0:01:24]} 31. Bxd4+ {[%emt 0:00:03]} Qxd4 {[%emt 0:00:08]} 32. Rc7 {[%emt 0:00:17]} Qa1+ {[%emt 0:00:37]} 33. Kh2 {[%emt 0:00:11]} Rd1 {[%emt 0:00:49]} 34. Qxe7 {[%emt 0:00:40]} Rh1+ {[%emt 0:01:28]} 35. Kg3 {[%emt 0:00:04]} Qd4 {[%emt 0:01:12]} 36. Qxf7+ {[%emt 0:00:12]} Kh6 {[%emt 0:00:05]} 37. Qf8+ {[%emt 0:00:28]} Kh5 {[%emt 0:00:17]} 38. Rxh7+ {[%emt 0:00:17]} 1-0

[Event "11th Dolomiti Open 2020"]
[Site "Forni di Sopra"]
[Date "2020.09.29"]
[Round "4.6"]
[White "Bucher, Grant W"]
[Black "Basso, Pier Luigi"]
[Result "0-1"]
[ECO "B11"]
[WhiteElo "2119"]
[BlackElo "2603"]
[Annotator "ChessBase"]
[PlyCount "60"]
[EventDate "2020.09.26"]
[EventType "swiss"]
[EventCountry "ITA"]
[SourceTitle "playchess.com"]
[Source "ChessBase"]
[SourceQuality "1"]
[TimeControl "40/5400+30:1800+30"]

1. e4 {[%emt 0:00:00]} c6 {[%emt 0:00:00]} 2. Nc3 {[%emt 0:00:00]} d5 {[%emt 0:00:00]} 3. Nf3 {[%emt 0:00:00]} Bg4 {[%emt 0:00:00]} 4. h3 {[%emt 0:00:00]} Bxf3 {[%emt 0:00:00]} 5. Qxf3 {[%emt 0:00:05]} e6 {[%emt 0:00:00]} 6. d4 {[%emt 0:00:14]} dxe4 {[%emt 0:00:05]} 7. Qxe4 {[%emt 0:00:15]} Nf6 {[%emt 0:00:06]} 8. Qd3 {[%emt 0:00:31]} Be7 {[%emt 0:00:42]} 9. g3 {[%emt 0:00:35]} Na6 {[%emt 0:00:06]} 10. a3 {[%emt 0:01:58]} Qb6 {[%emt 0:00:11]} 11. Bg2 {[%emt 0:06:15]} Rd8 {[%emt 0:00:12]} 12. Be3 {[%emt 0:04:45]} Qxb2 {[%emt 0:08:39]} 13. O-O {[%emt 0:10:54]} Qb6 {[%emt 0:00:11]} 14. d5 {[%emt 0:21:08]} Nc5 {[%emt 0:13:29]} 15. Rfb1 {[%emt 0:07:26]} Qxb1+ {[%emt 0:02:43]} 16. Rxb1 {[%emt 0:00:08]} Nxd3 {[%emt 0:00:04]} 17. dxc6 {[%emt 0:08:45]} Nc5 {[%emt 0:01:54]} 18. cxb7 {[%emt 0:04:37]} O-O {[%emt 0:00:11]} 19. Bf4 {[%emt 0:01:48]} Nxb7 {[%emt 0:01:02]} 20. Rxb7 {[%emt 0:00:08]} Bxa3 {[%emt 0:00:06]} 21. Rxa7 {[%emt 0:00:27]} Bd6 {[%emt 0:00:38]} 22. Bg5 {[%emt 0:04:35]} Be5 {[%emt 0:03:46]} 23. Bxf6 {[%emt 0:05:10]} gxf6 {[%emt 0:00:50]} 24. Nb5 {[%emt 0:01:18]} Rd1+ {[%emt 0:01:22]} 25. Bf1 {[%emt 0:00:25]} Rc1 {[%emt 0:00:23]} 26. c4 {[%emt 0:00:18]} Rd8 {[%emt 0:00:06]} 27. Kg2 {[%emt 0:00:59]} Rd2 {[%emt 0:00:07]} 28. Ra3 {[%emt 0:01:48]} f5 {[%emt 0:01:22]} 29. Re3 {[%emt 0:01:58]} Bf6 {[%emt 0:00:17]} 30. Rf3 {[%emt 0:00:39]} Rdd1 {[%emt 0:00:09]} 0-1

[Event "11th Dolomiti Open 2020"]
[Site "Forni di Sopra"]
[Date "2020.09.29"]
[Round "4.7"]
[White "Simonetto, Andrea"]
[Black "Andolfatto, Maria"]
[Result "0-1"]
[ECO "A13"]
[WhiteElo "2195"]
[BlackElo "2002"]
[Annotator "ChessBase"]
[PlyCount "34"]
[EventDate "2020.09.26"]
[EventType "swiss"]
[EventCountry "ITA"]
[SourceTitle "playchess.com"]
[Source "ChessBase"]
[SourceQuality "1"]
[TimeControl "40/5400+30:1800+30"]

1. Nf3 {[%emt 0:00:00]} d5 {[%emt 0:00:00]} 2. e3 {[%emt 0:00:00]} Nf6 {[%emt 0:00:00]} 3. c4 {[%emt 0:00:00]} e6 {[%emt 0:00:02]} 4. b3 {[%emt 0:00:00]} b6 {[%emt 0:00:09]} 5. cxd5 {[%emt 0:01:41]} exd5 {[%emt 0:00:10]} 6. Bb5+ {[%emt 0:09:11]} Nbd7 {[%emt 0:08:22]} 7. Bc6 {[%emt 0:14:37]} Rb8 {[%emt 0:01:58]} 8. Nd4 {[%emt 0:05:40]} Bc5 {[%emt 0:06:26]} 9. Bb2 {[%emt 0:04:52]} Ba6 {[%emt 0:07:25]} 10. Nf5 {[%emt 0:03:37]} Kf8 {[%emt 0:17:44]} 11. b4 {[%emt 0:15:25]} Bxb4 {[%emt 0:10:15]} 12. Qa4 {[%emt 0:01:33]} Nc5 {[%emt 0:00:21]} 13. Qxb4 {[%emt 0:00:47]} Qd6 {[%emt 0:00:47]} 14. Qa3 {[%emt 0:13:41]} Qxc6 {[%emt 0:10:29]} 15. d4 {[%emt 0:00:10]} Qb5 {[%emt 0:15:57]} 16. Nc3 {[%emt 0:00:07]} Qxb2 {[%emt 0:00:53]} 17. Qxb2 {[%emt 0:00:51]} Nd3+ {[%emt 0:17:32]} 0-1

[Event "11th Dolomiti Open 2020"]
[Site "Forni di Sopra"]
[Date "2020.09.29"]
[Round "4.8"]
[White "Marchesich, Giovanni"]
[Black "Fischer, Daniel"]
[Result "1-0"]
[ECO "C78"]
[WhiteElo "2063"]
[BlackElo "2331"]
[Annotator "ChessBase"]
[PlyCount "69"]
[EventDate "2020.09.26"]
[EventType "swiss"]
[EventCountry "ITA"]
[SourceTitle "playchess.com"]
[Source "ChessBase"]
[SourceQuality "1"]
[TimeControl "40/5400+30:1800+30"]

1. e4 {[%emt 0:00:00]} e5 {[%emt 0:00:00]} 2. Nf3 {[%emt 0:00:00]} Nc6 {[%emt 0:00:00]} 3. Bb5 {[%emt 0:00:01]} a6 {[%emt 0:00:00]} 4. Ba4 {[%emt 0:00:11]} Nf6 {[%emt 0:00:01]} 5. O-O {[%emt 0:00:23]} b5 {[%emt 0:00:12]} 6. Bb3 {[%emt 0:00:09]} Bc5 {[%emt 0:00:17]} 7. a4 {[%emt 0:00:40]} Rb8 {[%emt 0:00:20]} 8. Nxe5 {[%emt 0:00:35]} Nxe5 {[%emt 0:00:05]} 9. d4 {[%emt 0:00:08]} Bxd4 {[%emt 0:00:36]} 10. Qxd4 {[%emt 0:00:10]} d6 {[%emt 0:00:59]} 11. f4 {[%emt 0:00:40]} Nc6 {[%emt 0:00:33]} 12. Qc3 {[%emt 0:00:52]} Ne7 {[%emt 0:00:37]} 13. Qd3 {[%emt 0:00:45]} O-O {[%emt 0:00:54]} 14. Nc3 {[%emt 0:01:44]} c5 {[%emt 0:02:20]} 15. axb5 {[%emt 0:01:20]} axb5 {[%emt 0:00:05]} 16. Nxb5 {[%emt 0:00:23]} Nxe4 {[%emt 0:00:48]} 17. Qxe4 {[%emt 0:00:18]} Rxb5 {[%emt 0:00:03]} 18. Ra7 {[%emt 0:01:02]} Bd7 {[%emt 0:01:34]} 19. Qd3 {[%emt 0:01:26]} Nf5 {[%emt 0:06:34]} 20. Bc4 {[%emt 0:02:02]} Rb6 {[%emt 0:16:18]} 21. Bd2 {[%emt 0:04:01]} Be6 {[%emt 0:32:34]} 22. Bxe6 {[%emt 0:06:50]} fxe6 {[%emt 0:00:04]} 23. Ba5 {[%emt 0:01:52]} Qb8 {[%emt 0:01:01]} 24. Bxb6 {[%emt 0:03:31]} Qxb6 {[%emt 0:00:23]} 25. Qa3 {[%emt 0:03:31]} Nd4 {[%emt 0:05:38]} 26. Qa6 {[%emt 0:22:41]} Qxb2 {[%emt 0:12:58]} 27. Qxd6 {[%emt 0:00:58]} Qxc2 {[%emt 0:02:04]} 28. Qe7 {[%emt 0:01:23]} Qg6 {[%emt 0:01:24]} 29. Qxc5 {[%emt 0:02:29]} Ne2+ {[%emt 0:01:52]} 30. Kh1 {[%emt 0:00:46]} Qh6 {[%emt 0:06:54]} 31. Qe3 {[%emt 0:06:40]} Qh5 {[%emt 0:01:13]} 32. Ra2 {[%emt 0:16:56]} Nxf4 {[%emt 0:01:58]} 33. Raf2 {[%emt 0:00:21]} e5 {[%emt 0:02:30]} 34. g3 {[%emt 0:01:01]} Qh3 {[%emt 0:00:48]} 35. Qxe5 {[%emt 0:01:41]} 1-0

[Event "11th Dolomiti Open 2020"]
[Site "Forni di Sopra"]
[Date "2020.09.29"]
[Round "4.9"]
[White "Giorgi, Ezio Alberto"]
[Black "Bisignano, Giuseppe"]
[Result "1-0"]
[ECO "E61"]
[WhiteElo "1752"]
[BlackElo "1818"]
[Annotator "NA"]
[PlyCount "117"]
[EventDate "2020.09.26"]
[EventType "swiss"]
[EventCountry "ITA"]
[SourceTitle "playchess.com"]
[Source "ChessBase"]
[SourceQuality "1"]
[TimeControl "40/5400+30:1800+30"]

1. d4 {[%emt 0:02:20]} Nf6 {[%emt 0:00:00]} 2. Bf4 {[%emt 0:00:06]} d6 {[%emt 0:01:05]} 3. Nf3 {[%emt 0:00:15]} g6 {[%emt 0:00:18]} 4. e3 {[%emt 0:00:12]} Bg7 {[%emt 0:00:07]} 5. h3 {[%emt 0:00:15]} O-O {[%emt 0:00:38]} 6. c4 {[%emt 0:00:15]} c5 {[%emt 0:01:24]} 7. Nc3 {[%emt 0:00:44]} cxd4 {[%emt 0:03:09]} 8. exd4 {[%emt 0:00:18]} Qa5 {[%emt 0:01:09]} 9. Qd2 {[%emt 0:03:26]} Nc6 {[%emt 0:05:18]} 10. d5 {[%emt 0:09:28]} e5 {[%emt 0:00:59]} 11. Bh6 {[%emt 0:09:39]} Bxh6 {[%emt 0:04:56]} 12. Qxh6 {[%emt 0:00:09]} Nd4 {[%emt 0:00:45]} 13. Bd3 {[%emt 0:05:38]} Re8 {[%emt 0:05:19]} 14. O-O-O {[%emt 0:02:43]} Bf5 {[%emt 0:03:29]} 15. Bxf5 {[%emt 0:01:50]} Nxf5 {[%emt 0:00:52]} 16. Qg5 {[%emt 0:02:50]} Kg7 {[%emt 0:00:57]} 17. g4 {[%emt 0:02:43]} e4 {[%emt 0:03:13]} 18. gxf5 {[%emt 0:05:10]} exf3 {[%emt 0:00:11]} 19. fxg6 {[%emt 0:00:24]} hxg6 {[%emt 0:01:13]} 20. Qf4 {[%emt 0:00:35]} Rac8 {[%emt 0:01:54]} 21. Qd4 {[%emt 0:02:26]} Qb4 {[%emt 0:01:27]} 22. b3 {[%emt 0:01:27]} b5 {[%emt 0:01:15]} 23. Rd3 {[%emt 0:03:39]} Re5 {[%emt 0:04:21]} 24. Rxf3 {[%emt 0:05:02]} bxc4 {[%emt 0:01:38]} 25. Kb2 {[%emt 0:03:11]} Nxd5 {[%emt 0:10:07]} 26. Qxa7 {[%emt 0:04:39]} Rc7 {[%emt 0:02:49]} 27. Qd4 {[%emt 0:04:39]} cxb3 {[%emt 0:03:35]} 28. Qxb4 {[%emt 0:01:52]} Nxb4 {[%emt 0:00:01]} 29. axb3 {[%emt 0:00:53]} d5 {[%emt 0:00:48]} 30. Nb5 {[%emt 0:03:21]} Re2+ {[%emt 0:03:35]} 31. Ka3 {[%emt 0:02:44]} Nc2+ {[%emt 0:00:17]} 32. Ka4 {[%emt 0:00:10]} Rc5 {[%emt 0:01:20]} 33. Rc3 {[%emt 0:02:01]} Re6 {[%emt 0:06:28]} 34. b4 {[%emt 0:02:23]} Rxc3 {[%emt 0:01:59]} 35. Nxc3 {[%emt 0:00:06]} d4 {[%emt 0:00:12]} 36. Rc1 {[%emt 0:05:02]} d3 {[%emt 0:00:20]} 37. Rd1 {[%emt 0:00:36]} Rd6 {[%emt 0:06:34]} 38. Kb3 {[%emt 0:01:45]} Rd4 {[%emt 0:01:41]} 39. b5 {[%emt 0:03:17]} Kf6 {[%emt 0:01:43]} 40. f3 {[%emt 0:11:47]} Ke5 {[%emt 0:22:54]} 41. Ne4 {[%emt 0:24:51]} Kf4 {[%emt 0:12:56]} 42. Nc5 {[%emt 0:03:43]} Ke3 {[%emt 0:05:20]} 43. Nxd3 {[%emt 0:00:00]} Nb4 {[%emt 0:00:00]} 44. Nb2 {[%emt 0:00:00]} Rf4 {[%emt 0:00:00]} 45. Nc4+ {[%emt 0:00:00]} Ke2 {[%emt 0:00:00]} 46. Rd2+ {[%emt 0:00:00]} Kxf3 {[%emt 0:00:00]} 47. Kxb4 {[%emt 0:00:00]} Re4 {[%emt 0:00:00]} 48. b6 {[%emt 0:00:00]} f5 {[%emt 0:00:00]} 49. b7 {[%emt 0:00:00]} Re8 {[%emt 0:00:00]} 50. Rd3+ {[%emt 0:00:00]} Kg2 {[%emt 0:00:00]} 51. Ne5 {[%emt 0:00:00]} g5 {[%emt 0:00:00]} 52. Nc6 {[%emt 0:07:26]} f4 {[%emt 0:17:44]} 53. Rd8 {[%emt 0:00:00]} Rxd8 {[%emt 0:00:00]} 54. Nxd8 {[%emt 0:00:00]} f3 {[%emt 0:00:00]} 55. b8=Q {[%emt 0:00:00]} f2 {[%emt 0:00:00]} 56. Qb7+ {[%emt 0:00:00]} Kxh3 {[%emt 0:00:00]} 57. Qf3+ {[%emt 0:00:00]} Kh4 {[%emt 0:00:00]} 58. Qxf2+ {[%emt 0:00:00]} Kh3 {[%emt 0:00:00]} 59. Qg1 {[%emt 0:00:00]} 1-0